{"text_format":"3","workbook":"xlsx","n_sheets":3,"sheets":["Alustamine","Kingieelarve ja jälgimine","Andmed"],"not_rendered":{"charts":1,"defined_names":1},"read":"whole","date_system":"1900"}

{"sheet":"Alustamine","index":0,"n_rows":7,"n_cols":2,"rows_kept":7}
[null,"Teave malli kohta"]
[null,"Selle malli abil saate oma kinkide ostud jäädvustada ja neid eelarves jälgida."]
[null,"Sisestage tabelisse pereliikmete ja sõprade nimed, kingid, eelarvestatud ja kulutatud summad ning märkmed ja valige sündmus ja sündmuse kuu."]
[null,"Kuu ülevaatediagrammi värskendatakse automaatselt."]
[null,"Märkus. "]
[null,"Täiendavad juhised leiate töölehe KINGIEELARVE JA JÄLGIMINE veerust A. See tekst on tahtlikult peidetud. Teksti eemaldamiseks valige veerg A ja seejärel käsk KUSTUTA. Teksti kuvamiseks valige veerg A ja muutke seejärel fondi värvi."]
[null,"Tabeli kohta lisateabe saamiseks vajutage tabelis tõstuklahvi (SHIFT) ja seejärel klahvi F10, valige suvand TABEL ja seejärel käsk ASETEKST."]

{"sheet":"Kingieelarve ja jälgimine","index":1,"n_rows":10,"n_cols":13,"rows_kept":10,"merged":[[0,1,0,4],[0,5,0,12],[1,1,1,2],[2,1,2,12],[3,1,3,3]]}
["Sellel töölehel saate luua isikliku kingieelarve ja jälgimisfunktsiooni. Selle töölehe pealkiri on parempoolses lahtris ning lahtris F1 on näpunäide. Töölehe kasutamise kohta käivad kasulikud juhised leiate selle veeru lahtritest.","Kingieelarve ja jälgimine",{"$nulls":3},"Täitke nii palju kui võimalik iga uue aasta alguses. Sisestage pereliikmete ja sõprade nimed, valige kinkesündmus, valige sündmuse kuu ja tippige, kui palju soovite kulutada. Üks inimene võib tabelis esineda mitu korda iga eri sündmuse kohta (sünnipäev, püha, pidu jne)."]
["Kuuülevaate silt on parempoolses lahtris ja näpunäide on lahtris D2.","Kuuülevaade",null,"Graafiku abil saate ettevalmistamiseks eelseisvaid kuid kuvada. Ostude jälgimiseks eelarves jäädvustage need."]
["Eelarveliste summade tulpdiagramm koos kattuva kulutatud summade joondiagrammiga on parempoolses lahtris.","Eelarveliste summade tulpdiagramm koos kattuva kulutatud summade joondiagrammiga on selles lahtris."]
["Kingieelarve ja jälgimise silt on parempoolses lahtris.","Kingieelarve ja jälgimine"]
["Sisestage üksikasjad parempoolsest lahtrist algavasse tabelisse Eelarve jälgimine.","Tegija","Sündmus","Kuu","Summa\neelarve","Summa\nkulutatud","Kingitus","Kingituse link","Kauplusest/\nVeebipoest","Ostetud?","Pakitud?","Üle antud?","Märkmed"]
[null,"Nimi 1","Sünnipäevad","Juuni",{"v":50,"d":"50 €"},{"v":30,"d":"30 €"},"Jalatsid","Müüja","Veebipoest","Jah","Ei","Ei","16.06, kinopiletid"]
[null,"Nimi 2","Aastapäevad","Aprill",{"v":20,"d":"20 €"},{"v":20,"d":"20 €"},"Kass","Müüja","Kauplusest","Ei","Ei","Ei","Ta mainis, et talle meeldivad koerad"]
[null,"Nimi 3","Pühad","Juuli",{"v":50,"d":"50 €"},{"v":70,"d":"70 €"},"Kõrvaklapid","Müüja","Veebipoest","Ei","Ei","Ei","Ühiselamuga seotud asjad"]
[null,"Nimi 4","Sünnipäevad","Jaanuar",{"v":20,"d":"20 €"},{"v":30,"d":"30 €"},"Mäng","Müüja","Kauplusest","Jah","Jah","Jah"]
[null,"Nimi 5","Pulmad","Juuni",{"v":100,"d":"100 €"},{"v":150,"d":"150 €"},"Kristallvaas","Müüja","Kauplusest","Jah","Jah","Ei"]

{"sheet":"Andmed","index":2,"n_rows":13,"n_cols":8,"rows_kept":13,"hidden":true}
["Sündmused",null,"Kuupäev","Kuupäev","Eelarve summa\nSünnipäevad","Eelarve summa\nPühad","Eelarve summa\nMuu","Kulutatud summa"]
["Sünnipäevad",null,"Jaanuar","Jaan",{"$f":"SUMIFS(Eelarvejälgimine[Summa\neelarve],Eelarvejälgimine[Kuu],\"Jaanuar\",Eelarvejälgimine[Sündmus],\"Sünnipäevad\")","v":{"v":20,"d":"20 €"}},{"$f":"SUMIFS(Eelarvejälgimine[Summa\neelarve],Eelarvejälgimine[Kuu],\"Jaanuar\",Eelarvejälgimine[Sündmus],\"Pühad\")","v":{"v":0,"d":"0 €"}},{"$f":"SUMIFS(Eelarvejälgimine[Summa\neelarve],Eelarvejälgimine[Kuu],\"Jaanuar\",Eelarvejälgimine[Sündmus],\"<>Pühad\",Eelarvejälgimine[Sündmus],\"<>Sünnipäevad\")","v":{"v":0,"d":"0 €"}},{"$f":"SUMIFS(Eelarvejälgimine[Summa\nkulutatud],Eelarvejälgimine[Kuu],\"Jaanuar\")","v":{"v":30,"d":"30 €"}}]
["Pühad",null,"Veebruar","Veebr",{"$f":"SUMIFS(Eelarvejälgimine[Summa\neelarve],Eelarvejälgimine[Kuu],\"Veebruar\",Eelarvejälgimine[Sündmus],\"Sünnipäevad\")","v":{"v":0,"d":"0 €"}},{"$f":"SUMIFS(Eelarvejälgimine[Summa\neelarve],Eelarvejälgimine[Kuu],\"Veebruar\",Eelarvejälgimine[Sündmus],\"Pühad\")","v":{"v":0,"d":"0 €"}},{"$f":"SUMIFS(Eelarvejälgimine[Summa\neelarve],Eelarvejälgimine[Kuu],\"Veebruar\",Eelarvejälgimine[Sündmus],\"<>Pühad\",Eelarvejälgimine[Sündmus],\"<>Sünnipäevad\")","v":{"v":0,"d":"0 €"}},{"$f":"SUMIFS(Eelarvejälgimine[Summa\nkulutatud],Eelarvejälgimine[Kuu],\"Veebruar\")","v":{"v":0,"d":"0 €"}}]
["Aastapäevad",null,"Märts","Märts",{"$f":"SUMIFS(Eelarvejälgimine[Summa\neelarve],Eelarvejälgimine[Kuu],\"Märts\",Eelarvejälgimine[Sündmus],\"Sünnipäevad\")","v":{"v":0,"d":"0 €"}},{"$f":"SUMIFS(Eelarvejälgimine[Summa\neelarve],Eelarvejälgimine[Kuu],\"Märts\",Eelarvejälgimine[Sündmus],\"Pühad\")","v":{"v":0,"d":"0 €"}},{"$f":"SUMIFS(Eelarvejälgimine[Summa\neelarve],Eelarvejälgimine[Kuu],\"Märts\",Eelarvejälgimine[Sündmus],\"<>Pühad\",Eelarvejälgimine[Sündmus],\"<>Sünnipäevad\")","v":{"v":0,"d":"0 €"}},{"$f":"SUMIFS(Eelarvejälgimine[Summa\nkulutatud],Eelarvejälgimine[Kuu],\"Märts\")","v":{"v":0,"d":"0 €"}}]
["Pulmad",null,"Aprill","Apr",{"$f":"SUMIFS(Eelarvejälgimine[Summa\neelarve],Eelarvejälgimine[Kuu],\"Aprill\",Eelarvejälgimine[Sündmus],\"Sünnipäevad\")","v":{"v":0,"d":"0 €"}},{"$f":"SUMIFS(Eelarvejälgimine[Summa\neelarve],Eelarvejälgimine[Kuu],\"Aprill\",Eelarvejälgimine[Sündmus],\"Pühad\")","v":{"v":0,"d":"0 €"}},{"$f":"SUMIFS(Eelarvejälgimine[Summa\neelarve],Eelarvejälgimine[Kuu],\"Aprill\",Eelarvejälgimine[Sündmus],\"<>Pühad\",Eelarvejälgimine[Sündmus],\"<>Sünnipäevad\")","v":{"v":20,"d":"20 €"}},{"$f":"SUMIFS(Eelarvejälgimine[Summa\nkulutatud],Eelarvejälgimine[Kuu],\"Aprill\")","v":{"v":20,"d":"20 €"}}]
["Pruudipeod",null,"Mai","Mai",{"$f":"SUMIFS(Eelarvejälgimine[Summa\neelarve],Eelarvejälgimine[Kuu],\"Mai\",Eelarvejälgimine[Sündmus],\"Sünnipäevad\")","v":{"v":0,"d":"0 €"}},{"$f":"SUMIFS(Eelarvejälgimine[Summa\neelarve],Eelarvejälgimine[Kuu],\"Mai\",Eelarvejälgimine[Sündmus],\"Pühad\")","v":{"v":0,"d":"0 €"}},{"$f":"SUMIFS(Eelarvejälgimine[Summa\neelarve],Eelarvejälgimine[Kuu],\"Mai\",Eelarvejälgimine[Sündmus],\"<>Pühad\",Eelarvejälgimine[Sündmus],\"<>Sünnipäevad\")","v":{"v":0,"d":"0 €"}},{"$f":"SUMIFS(Eelarvejälgimine[Summa\nkulutatud],Eelarvejälgimine[Kuu],\"Mai\")","v":{"v":0,"d":"0 €"}}]
["Katsikud",null,"Juuni","Juuni",{"$f":"SUMIFS(Eelarvejälgimine[Summa\neelarve],Eelarvejälgimine[Kuu],\"Juuni\",Eelarvejälgimine[Sündmus],\"Sünnipäevad\")","v":{"v":50,"d":"50 €"}},{"$f":"SUMIFS(Eelarvejälgimine[Summa\neelarve],Eelarvejälgimine[Kuu],\"Juuni\",Eelarvejälgimine[Sündmus],\"Pühad\")","v":{"v":0,"d":"0 €"}},{"$f":"SUMIFS(Eelarvejälgimine[Summa\neelarve],Eelarvejälgimine[Kuu],\"Juuni\",Eelarvejälgimine[Sündmus],\"<>Pühad\",Eelarvejälgimine[Sündmus],\"<>Sünnipäevad\")","v":{"v":100,"d":"100 €"}},{"$f":"SUMIFS(Eelarvejälgimine[Summa\nkulutatud],Eelarvejälgimine[Kuu],\"Juuni\")","v":{"v":180,"d":"180 €"}}]
["Koolilõpetamised",null,"Juuli","Juuli",{"$f":"SUMIFS(Eelarvejälgimine[Summa\neelarve],Eelarvejälgimine[Kuu],\"Juuli\",Eelarvejälgimine[Sündmus],\"Sünnipäevad\")","v":{"v":0,"d":"0 €"}},{"$f":"SUMIFS(Eelarvejälgimine[Summa\neelarve],Eelarvejälgimine[Kuu],\"Juuli\",Eelarvejälgimine[Sündmus],\"Pühad\")","v":{"v":50,"d":"50 €"}},{"$f":"SUMIFS(Eelarvejälgimine[Summa\neelarve],Eelarvejälgimine[Kuu],\"Juuli\",Eelarvejälgimine[Sündmus],\"<>Pühad\",Eelarvejälgimine[Sündmus],\"<>Sünnipäevad\")","v":{"v":0,"d":"0 €"}},{"$f":"SUMIFS(Eelarvejälgimine[Summa\nkulutatud],Eelarvejälgimine[Kuu],\"Juuli\")","v":{"v":70,"d":"70 €"}}]
["Muu",null,"August","Aug",{"$f":"SUMIFS(Eelarvejälgimine[Summa\neelarve],Eelarvejälgimine[Kuu],\"August\",Eelarvejälgimine[Sündmus],\"Sünnipäevad\")","v":{"v":0,"d":"0 €"}},{"$f":"SUMIFS(Eelarvejälgimine[Summa\neelarve],Eelarvejälgimine[Kuu],\"August\",Eelarvejälgimine[Sündmus],\"Pühad\")","v":{"v":0,"d":"0 €"}},{"$f":"SUMIFS(Eelarvejälgimine[Summa\neelarve],Eelarvejälgimine[Kuu],\"August\",Eelarvejälgimine[Sündmus],\"<>Pühad\",Eelarvejälgimine[Sündmus],\"<>Sünnipäevad\")","v":{"v":0,"d":"0 €"}},{"$f":"SUMIFS(Eelarvejälgimine[Summa\nkulutatud],Eelarvejälgimine[Kuu],\"August\")","v":{"v":0,"d":"0 €"}}]
[null,null,"September","Sept",{"$f":"SUMIFS(Eelarvejälgimine[Summa\neelarve],Eelarvejälgimine[Kuu],\"September\",Eelarvejälgimine[Sündmus],\"Sünnipäevad\")","v":{"v":0,"d":"0 €"}},{"$f":"SUMIFS(Eelarvejälgimine[Summa\neelarve],Eelarvejälgimine[Kuu],\"September\",Eelarvejälgimine[Sündmus],\"Pühad\")","v":{"v":0,"d":"0 €"}},{"$f":"SUMIFS(Eelarvejälgimine[Summa\neelarve],Eelarvejälgimine[Kuu],\"September\",Eelarvejälgimine[Sündmus],\"<>Pühad\",Eelarvejälgimine[Sündmus],\"<>Sünnipäevad\")","v":{"v":0,"d":"0 €"}},{"$f":"SUMIFS(Eelarvejälgimine[Summa\nkulutatud],Eelarvejälgimine[Kuu],\"September\")","v":{"v":0,"d":"0 €"}}]
[null,null,"Oktoober","Okt",{"$f":"SUMIFS(Eelarvejälgimine[Summa\neelarve],Eelarvejälgimine[Kuu],\"Oktoober\",Eelarvejälgimine[Sündmus],\"Sünnipäevad\")","v":{"v":0,"d":"0 €"}},{"$f":"SUMIFS(Eelarvejälgimine[Summa\neelarve],Eelarvejälgimine[Kuu],\"Oktoober\",Eelarvejälgimine[Sündmus],\"Pühad\")","v":{"v":0,"d":"0 €"}},{"$f":"SUMIFS(Eelarvejälgimine[Summa\neelarve],Eelarvejälgimine[Kuu],\"Oktoober\",Eelarvejälgimine[Sündmus],\"<>Pühad\",Eelarvejälgimine[Sündmus],\"<>Sünnipäevad\")","v":{"v":0,"d":"0 €"}},{"$f":"SUMIFS(Eelarvejälgimine[Summa\nkulutatud],Eelarvejälgimine[Kuu],\"Oktoober\")","v":{"v":0,"d":"0 €"}}]
[null,null,"November","Nov",{"$f":"SUMIFS(Eelarvejälgimine[Summa\neelarve],Eelarvejälgimine[Kuu],\"November\",Eelarvejälgimine[Sündmus],\"Sünnipäevad\")","v":{"v":0,"d":"0 €"}},{"$f":"SUMIFS(Eelarvejälgimine[Summa\neelarve],Eelarvejälgimine[Kuu],\"November\",Eelarvejälgimine[Sündmus],\"Pühad\")","v":{"v":0,"d":"0 €"}},{"$f":"SUMIFS(Eelarvejälgimine[Summa\neelarve],Eelarvejälgimine[Kuu],\"November\",Eelarvejälgimine[Sündmus],\"<>Pühad\",Eelarvejälgimine[Sündmus],\"<>Sünnipäevad\")","v":{"v":0,"d":"0 €"}},{"$f":"SUMIFS(Eelarvejälgimine[Summa\nkulutatud],Eelarvejälgimine[Kuu],\"November\")","v":{"v":0,"d":"0 €"}}]
[null,null,"Detsember","Dets",{"$f":"SUMIFS(Eelarvejälgimine[Summa\neelarve],Eelarvejälgimine[Kuu],\"Detsember\",Eelarvejälgimine[Sündmus],\"Sünnipäevad\")","v":{"v":0,"d":"0 €"}},{"$f":"SUMIFS(Eelarvejälgimine[Summa\neelarve],Eelarvejälgimine[Kuu],\"Detsember\",Eelarvejälgimine[Sündmus],\"Pühad\")","v":{"v":0,"d":"0 €"}},{"$f":"SUMIFS(Eelarvejälgimine[Summa\neelarve],Eelarvejälgimine[Kuu],\"Detsember\",Eelarvejälgimine[Sündmus],\"<>Pühad\",Eelarvejälgimine[Sündmus],\"<>Sünnipäevad\")","v":{"v":0,"d":"0 €"}},{"$f":"SUMIFS(Eelarvejälgimine[Summa\nkulutatud],Eelarvejälgimine[Kuu],\"Detsember\")","v":{"v":0,"d":"0 €"}}]